Cogmind - Beta 15 @@@ ROGUE MODE // 2025.10.04 @ 21:03:59 Player: Pyrexia Result: Destroyed by G-47 Trooper with Particle Gun Performance ------------- Evolutions (1) 500 Regions Visited (4) 800 Robots Destroyed (14) 70 Value Destroyed (410) 410 Prototype IDs (0) 0 Alien Tech Used (0) 0 Bonus (0) 0 TOTAL SCORE: 1780 Bonus ------- None Cogmind --------- Core Integrity 0/400 Matter 300/300 Energy 100/100 System Corruption 9% Temperature Cool (9) Movement Walking (120) Location -9/Storage Parts ------- > --- POWER (1) -------- (None) > --- PROPULSION (3) --- Aluminum Leg > --- UTILITY (3) ------ Tractor Beam > --- WEAPON (2) ------- Katana Katana > --- INVENTORY (5) ---- Light Treads Small Laser Heavy Assault Rifle Peak State ------------ > --- POWER ------------ Light Nuclear Core > --- PROPULSION ------- Light Treads Aluminum Leg Aluminum Leg > --- UTILITY ---------- Improved Heat Sink Tractor Beam > --- WEAPON ----------- Katana Katana > --- INVENTORY -------- Small Laser [Rating: 16] Favorites ----------- Power Ion Engine Engine Ion Engine Power Core Light Nuclear Core Propulsion Light Treads Treads Light Treads Leg Aluminum Leg Flight Unit Flight Unit Utility Tractor Beam Device Tractor Beam Storage Large Matter Pod Weapon Assault Rifle Energy Gun Medium Laser Ballistic Gun Assault Rifle Impact Weapon Hammer Slashing Weapon Katana Build | -11 -10 -10 -9 -9 ------- Run | Yrd Mat Min Mat Sto Slots Evolved 2 | . . . 2 . Power . | . . . . . Propulsion 1 | . . . 1 . Utility 1 | . . . 1 . Weapon . | . . . . . Parts Attached 23 | 5 1 4 11 2 Power 4 | 1 . 1 2 . Engine 3 | 1 . 1 1 . Core 1 | . . . 1 . Reactor . | . . . . . Propulsion 7 | 2 . 1 4 . Treads 3 | 2 . . 1 . Leg 3 | . . . 3 . Wheel . | . . . . . Hover . | . . . . . Flight 1 | . . 1 . . Utility 5 | . . 2 3 . Device 4 | . . 1 3 . Storage 1 | . . 1 . . Processor . | . . . . . Hackware . | . . . . . Protection . | . . . . . Artifact . | . . . . . Weapon 7 | 2 1 . 2 2 Energy Gun 2 | 1 . . . 1 Energy Cannon . | . . . . . Ballistic Gun 2 | 1 . . . 1 Ballistic Cannon . | . . . . . Launcher . | . . . . . Special Weapon . | . . . . . Impact Weapon 1 | . 1 . . . Slashing Weapon 2 | . . . 2 . Piercing Weapon . | . . . . . Special Melee Weapon . | . . . . . Unidentified Prototypes . | . . . . . Parts Lost 12 | . . 2 7 3 Power 2 | . . . 1 1 Propulsion 5 | . . 1 2 2 Utility 3 | . . . 3 . Weapon 2 | . . 1 1 . Highest Loss Streak 6 | . . 2 6 3 To Critical Strikes . | . . . . . Average Backups 1 | . . . 1 3 Power . | . . . . . Propulsion . | . . . . 1 Utility . | . . . . . Weapon . | . . . 1 2 Tool/Special . | . . . . . Unused Backups . | . . . . . Power . | . . . . . Propulsion . | . . . . . Utility . | . . . . . Weapon . | . . . . . Tool/Special . | . . . . . Average Slot Usage (%) 75 | . 71 82 67 82 Engine 8 | . 14 14 5 . Core 2 | . . . 3 9 Treads 11 | . 28 17 2 . Leg 8 | . . . 7 31 Flight 4 | . . 9 5 . Device 10 | . . 6 15 20 Storage 3 | . . 6 5 . Energy Gun 4 | . 14 3 . 7 Ballistic Gun 9 | . 14 11 5 8 Impact Weapon 6 | . . 12 7 . Slashing Weapon 3 | . . . 8 5 Peak Build Rating 16 | 5 5 7 16 16 Average Rating 8 | 3 5 5 10 12 On Entrance 6 | . 5 5 7 16 Naked Turns . | . . . . . Heaviest Build 18 | 9 9 13 18 11 Greatest Support 40 | 40 40 40 30 30 Greatest Overweight (x) 4 | . . . 4 . Average Overweight (x) . | . . . 1 . Largest Inventory Capacity 5 | 5 5 5 5 5 Average Capacity 5 | 5 5 5 5 5 Most Carried 5 | 2 1 2 5 3 Average Carried 1 | . . . 1 3 Final Capacity 5 | 5 5 5 5 5 Final Carried 3 | . 1 1 3 3 Class Distribution -------------------- 73% | Mutant 26% | Scavenger-Mutant Dominant Class ---------------- Mutant | -10/Materials Mutant | -10/Mines Mutant | -9/Materials Scavenger-Mutant | -9/Storage Resources | -11 -10 -10 -9 -9 ----------- Run | Yrd Mat Min Mat Sto Matter Collected 659 | 250 . 222 134 53 Remotely 253 | . . 135 65 53 Salvage Created 555 | . . 77 340 138 Parts 29 | . . 8 15 6 Haulers Intercepted . | . . . . . Recyclers Shooed . | . . . . . Parts Field Recycled . | . . . . . Retrieved Matter . | . . . . . Parts Self-Destructed . | . . . . . Prevented . | . . . . . Kills | -11 -10 -10 -9 -9 ------- Run | Yrd Mat Min Mat Sto Combat Hostiles Destroyed 15 | . . 6 6 3 Melee 11 | . . 3 5 3 Guns 3 | . . 2 1 . Classes Destroyed 6 | . . 3 3 . Recycler 1 | . . . 1 . Swarmer 3 | . . 3 . . Grunt 8 | . . . 5 3 Brawler 1 | . . . 1 . Demolisher 1 | . . 1 . . Assembled 2 | . . 2 . . Best Kill Streak 6 | . . 3 6 3 Combat Bots Only 5 | . . 3 5 3 Max Kills in Single Turn 1 | . . 1 1 1 Gunslinging . | . . . . . Exploded . | . . . . . Melee 1 | . . 1 1 1 Uniques/NPCs Destroyed . | . . . . . Combat | -11 -10 -10 -9 -9 -------- Run | Yrd Mat Min Mat Sto Hostile Shots Fired 141 | . . 23 65 53 Missed 40 | . . 2 24 14 Hits 101 | . . 21 41 39 Melee 3 | . . . 3 . Projectile 98 | . . 21 38 39 AOE 11 | . . 11 . . Critical Strikes 1 | . . . . 1 Damage Taken 1664 | . . 575 561 528 Core 560 | . . 159 211 190 Absorbed by Shields . | . . . . . Core Remaining (%) 68 | 100 . 36 . . Volleys Fired 9 | . . 4 4 1 Largest 2 | . . 1 1 2 Hottest 63 | . . 50 20 63 Shots Fired 10 | . . 4 4 2 Gun 10 | . . 4 4 2 Cannon . | . . . . . Launcher . | . . . . . Special . | . . . . . Kinetic 6 | . . 1 4 1 Thermal 4 | . . 3 . 1 Explosive . | . . . . . Electromagnetic . | . . . . . Robot Hit Streak 10 | . . 4 8 10 Robot Miss Streak . | . . . . . Penetration Max . | . . . . . Secondary Targets . | . . . . . Shots Hit Robots 38 | . . 10 15 13 Core Hits 17 | . . 6 7 4 Critical Kills . | . . . . . Critical Parts Destroyed . | . . . . . Critical Strikes 1 | . . . . 1 Sever 1 | . . . . 1 Melee Attacks 37 | . . 7 17 13 Impact 15 | . . 7 8 . Slashing 22 | . . . 9 13 Piercing . | . . . . . Sneak Attacks 1 | . . . 1 . Combat Hostiles . | . . . . . Follow-up Attacks 4 | . . . 2 2 Damage Inflicted 1013 | . . 225 404 384 Guns 129 | . . 50 52 27 Cannons . | . . . . . Explosions . | . . . . . Melee 884 | . . 175 352 357 Ramming . | . . . . . Kinetic 78 | . . 12 52 14 Thermal 51 | . . 38 . 13 Explosive . | . . . . . Electromagnetic . | . . . . . Impact 301 | . . 175 126 . Slashing 583 | . . . 226 357 Piercing . | . . . . . Highest Corruption 9 | . . . 9 9 Average Corruption 8 | . . . 8 9 Corruption Purged . | . . . . . Corruption Blocked . | . . . . . Effects 11 | . . . 7 4 Message Errors 3 | . . . 2 1 Matter Fused 2 | . . . 1 1 Heat Flow Errors 1 | . . . 1 . Energy Discharges 1 | . . . . 1 Parts Rejected 1 | . . . . 1 Parts Fused 1 | . . . 1 . Data Loss (minor) 1 | . . . 1 . Data Loss (major) 1 | . . . 1 . Overload Shots . | . . . . . Overflow Damage 5 | . . . . 5 Projectiles . | . . . . . Explosions . | . . . . . Melee 5 | . . . . 5 Knockbacks 1 | . . 1 . . Impact 1 | . . 1 . . Kinetic . | . . . . . Secondary . | . . . . . Self-Inflicted Damage . | . . . . . Shots . | . . . . . Rammed . | . . . . . Targets Rammed . | . . . . . Kicked . | . . . . . Crushed . | . . . . . Highest Temperature 232 | . . 20 232 10 Average Temperature 59 | . . 9 116 5 Received Heat Transfer 525 | . . . 264 261 Siege Activations . | . . . . . Martial Activations . | . . . . . Shielding Activations . | . . . . . Robots Disrupted . | . . . . . Combat Hostiles . | . . . . . Robots Corrupted 1 | . . 1 . . Combat Hostiles 1 | . . 1 . . Parts Fried . | . . . . . Impact Corruptions 1 | . . 1 . . Robots Melted . | . . . . . Combat Hostiles . | . . . . . Parts Melted . | . . . . . Heat Transferred 136 | . . 111 . 25 Parts Sabotaged . | . . . . . Parts Stolen . | . . . . . Parts Stripped . | . . . . . Power Chain Reactions . | . . . . . Alert | -11 -10 -10 -9 -9 ------- Run | Yrd Mat Min Mat Sto Maximum Alert Level . | . . . . . Low Security (%) 100 | 100 100 100 100 100 Level 1 . | . . . . . Level 2 . | . . . . . Level 3 . | . . . . . Level 4 . | . . . . . Level 5 . | . . . . . High Security . | . . . . . Max Security . | . . . . . Peak Influence 115 | . 11 70 115 40 Initial 27 | . . . . 27 Average 20 | . 1 17 41 12 Influence Increases 320 | . 15 90 155 60 Destroy 0b10 Robot/C 260 | . . 80 120 60 Destroy 0b10 Robot/NC 5 | . . . 5 . Destroy Leader 40 | . . 10 30 . Successful Hack 15 | . 15 . . . Influence Decreases 310 | . 15 90 90 115 Entered New Map 38 | . . . . 38 Time Decay 222 | . 15 70 90 47 Lost Part 50 | . . 20 . 30 Squads Dispatched 3 | . 1 . 1 1 Investigation 1 | . . . . 1 Extermination . | . . . . . Reinforcement 2 | . 1 . 1 . Assault . | . . . . . Garrison . | . . . . . Intercept . | . . . . . Searches Triggered . | . . . . . Construction Impeded . | . . . . . Haulers Reinforced . | . . . . . Active Scanning Responses . | . . . . . Cargo Convoy Interrupts . | . . . . . Stealth | -11 -10 -10 -9 -9 --------- Run | Yrd Mat Min Mat Sto Distress Signals 3 | . . . 1 2 Communications Jammed . | . . . . . Distress Signals . | . . . . . Times Spotted 27 | . 2 7 7 11 Peak Tracking Total 8 | . 2 3 4 8 Tactical Retreats . | . . . . . Traps | -11 -10 -10 -9 -9 ------- Run | Yrd Mat Min Mat Sto Traps Triggered 2 | . . . . 2 Indirectly . | . . . . . Trap Hack Attempts . | . . . . . Triggered . | . . . . . Disarmed . | . . . . . Reprogrammed . | . . . . . Reused . | . . . . . Traps Extracted . | . . . . . Installed . | . . . . . Triggered . | . . . . . Machines | -11 -10 -10 -9 -9 ---------- Run | Yrd Mat Min Mat Sto Machines Disabled . | . . . . . Max in Single Turn . | . . . . . Machines Repaired . | . . . . . Machines Dismantled . | . . . . . Machines Sabotaged . | . . . . . Overloaded Fab Kills . | . . . . . Hacking | -11 -10 -10 -9 -9 --------- Run | Yrd Mat Min Mat Sto Machines Accessed 3 | . 2 . . 1 Terminals 3 | . 2 . . 1 Fabricators . | . . . . . Repair Stations . | . . . . . Recycling Units . | . . . . . Scanalyzers . | . . . . . Garrison Access . | . . . . . Total Hacks 5 | . 4 . . 1 Successful 3 | . 3 . . . Failed 2 | . 1 . . 1 Catastrophic . | . . . . . Database Lockouts . | . . . . . Manual . | . . . . . Terminals 5 | . 4 . . 1 Fabricators . | . . . . . Repair Stations . | . . . . . Recycling Units . | . . . . . Scanalyzers . | . . . . . Garrison Access . | . . . . . Terminal Hacks 3 | . 3 . . . Robot Analysis 1 | . 1 . . . Locate Traps 1 | . 1 . . . Recall Investigation 1 | . 1 . . . Fabricator Hacks . | . . . . . Repair Station Hacks . | . . . . . Recycling Unit Hacks . | . . . . . Scanalyzer . | . . . . . Garrison Access Hacks . | . . . . . Unauthorized Hacks . | . . . . . Terminals . | . . . . . Fabricators . | . . . . . Repair Stations . | . . . . . Recycling Units . | . . . . . Scanalyzers . | . . . . . Garrison Access . | . . . . . Data Cores Recovered . | . . . . . Used . | . . . . . Hacking Detections 1 | . 1 . . . Full Trace Events . | . . . . . Feedback Events . | . . . . . Feedback Blocked . | . . . . . Robot Schematics Acquired . | . . . . . Robots Built . | . . . . . Authchips . | . . . . . Time . | . . . . . Total Robot Build Rating . | . . . . . Part Schematics Acquired . | . . . . . Parts Built . | . . . . . Authchips . | . . . . . Time . | . . . . . Total Part Build Rating . | . . . . . Parts Repaired . | . . . . . Time . | . . . . . Parts Recycled . | . . . . . Recycled Matter . | . . . . . Retrieved Matter . | . . . . . Retrieved Components . | . . . . . Parts Scanalyzed . | . . . . . Part Schematics Acquired . | . . . . . Parts Damaged . | . . . . . Bothacking | -11 -10 -10 -9 -9 ------------ Run | Yrd Mat Min Mat Sto Used RIF Installer . | . . . . . Robots Hacked . | . . . . . Non-combat . | . . . . . Combat . | . . . . . Robot Hacks Applied . | . . . . . Relay Couplers Released . | . . . . . Fabnet Peak Effective % . | . . . . . Robots Rewired . | . . . . . Allies Hacked . | . . . . . Hacks Repelled . | . . . . . Allies | -11 -10 -10 -9 -9 -------- Run | Yrd Mat Min Mat Sto Total Allies . | . . . . . Largest Group . | . . . . . Highest-Rated Group . | . . . . . Highest-Rated Ally . | . . . . . Total Orders . | . . . . . Ally Attacks . | . . . . . Total Damage . | . . . . . Kills . | . . . . . Allies Corrupted . | . . . . . Allies Melted . | . . . . . Intel | -11 -10 -10 -9 -9 ------- Run | Yrd Mat Min Mat Sto Active Infowar (turns) 116 | . . . 116 . Sensors 116 | . . . 116 . Robot Analysis Total 1 | . 1 . . . Derelict Logs Recovered 1 | . . 1 . . Drone Launches . | . . . . . Drone Recoveries . | . . . . . Exploration | -11 -10 -10 -9 -9 ------------- Run | Yrd Mat Min Mat Sto Turns Passed 970 | 78 165 249 316 162 Spaces Moved 501 | 46 102 125 134 94 Core 23 | 4 . . 19 . Treads 273 | 42 102 125 4 . Legs 165 | . . . 71 94 Wheels . | . . . . . Hover . | . . . . . Flight 40 | . . . 40 . Fastest Speed 50 | 50 160 160 100 120 Average Speed 157 | 150 160 160 181 120 Slowest Speed 360 | 160 160 160 360 120 Overloaded Moves . | . . . . . Propulsion Burnouts . | . . . . . Robots Hopped . | . . . . . Potential Cave-ins . | . . . . . Cave-ins Triggered . | . . . . . Exploration Rate (%) 15 | 4 25 17 14 18 Regions Visited 4 Branch Regions 2 Pre-discovered Areas 1 | . . . . 1 Known Exits Taken 1 | . . . 1 . Unknown Exits Taken 3 | 1 1 1 . . Scrap Searched . | . . . . . Spaces Dug . | . . . . . Terrain Destroyed . | . . . . . Melee . | . . . . . Projectile . | . . . . . AOE . | . . . . . Terrain Rammed . | . . . . . Walls Destroyed . | . . . . . Machines Disabled . | . . . . . Actions | -11 -10 -10 -9 -9 --------- Run | Yrd Mat Min Mat Sto Total 615 | 55 103 156 178 123 Wait 23 | . . 10 . 13 Move 497 | 45 101 124 133 94 Hop . | . . . . . Pick Up 23 | 5 1 4 13 . Fast Attach . | . . . . . Attach 17 | 5 . 4 8 . Detach . | . . . . . Swap 11 | . 1 3 3 4 Drop 2 | . . . 2 . Fire 9 | . . 4 4 1 Melee 33 | . . 7 15 11 Ram . | . . . . . Kick . | . . . . . Crush . | . . . . . Escape Stasis . | . . . . . Rewire . | . . . . . Trap . | . . . . . Miscellaneous . | . . . . . Route ------- -11/Scrapyard -10/Materials -10/Mines -9/Materials -9/Storage History --------- Turn | Location | Event 21 | -11/Scrapyard | Discovered new exit (range 15) 79 | -11/Scrapyard | Entered Materials 80 | -10/Materials | Met a group of wandering Federalists 190 | -10/Materials | Discovered new exit (range 15) 244 | -10/Materials | Entered Mines 276 | -10/Mines | Assembled infested the area 301 | -10/Mines | Core integrity fell below 50% 329 | -10/Mines | Discovered new exit (range 16) 338 | -10/Mines | Build established: Mutant 358 | -10/Mines | Learned location of 1 exit from Materials 493 | -10/Mines | Entered Materials 493 | -9/Materials | Evolved 2 slots: Propulsion x1, Utility x1 494 | -9/Materials | Identified exit to Storage 690 | -9/Materials | Lost 6 parts (1p1n3u1w) 692 | -9/Materials | Core integrity fell below 50% 809 | -9/Materials | Entered Storage 857 | -9/Storage | Learned location of Armory (-4) 960 | -9/Storage | Core integrity fell below 20% 971 | -9/Storage | Destroyed by G-47 Trooper with Particle Gun Last Messages --------------- Katana follow-up attack on G-34 Mercenary. G-34 Mercenary destroyed. Acquired 6 matter. Lgt. Nuclear Core destroyed. R-06 Scavenger collects Aluminum Leg. G-34 Mercenary destroyed. R-06 Scavenger collects Sml. Laser. System corrupted: Imp. Heat Sink rejected. R-06 Scavenger collects Aluminum Leg. W-16 Scout sends out distress signal. R-06 Scavenger collects Ion Engine. R-06 Scavenger collects Sml. Laser. Katana follow-up attack on Y-45 Defender. Aluminum Leg destroyed. R-06 Scavenger collects Imp. Heat Sink. Destroyed Heat Sink. Aluminum Leg destroyed. Critical hit (Burn: +37). Y-45 Defender Hvy. Assault Rifle severed. R-06 Scavenger collects Hvy. Assault Rifle. Map ----- +----------------------------------------------------+ | """ """?????????????????????????????????????? | | #???????????????????????????????????? | | ######+##### ?????????????????????????????????? | | ????????????????????????????????? | | #???#+##???????????????????????????????? | | #?? #???????????????????????????????? | | # """" #???????????????????????????????? | | ######## """" #???????????????????????????????? | | #?????? """" #???????????????????????????????? | | #????????"""" #???????????????????????????????? | | #?????????? #???????????????????????????????? | | #????????#+##+#???????????????????????????????? | | #????????# #???????????????????????????????? | | #????????# #???????????????????????????????? | | ########## #???????????????????????????????? | | #???????????????????????????????? | | #?????#####?????????????????????? | | #????? ?????????????????????? | | #????? ?????????????????????? | | ############# #?????? ??????????????????????? | | #???????????# #?????? ??????????????????????? | | #???????????# #?????? ??????????????????????? | | ##????????#T# #?????? g????????? |???????????? | | #????????" + ########/##### ????????????? | | #????????### ggYg / ???????????? | | T #??????????# @#####??????????????????? | | #??????????# """r #??????????????????????? | | #??????????# "Y"r #??????????????????????? | | #+###??????????# r #??????????????????????? | | #???????????# u w#??????????????????????? | | #??????+ % a ?????????????????????? | | #???????######## ???????????????????? | | ####??????????????# ### ?????????????????? | | ??????????????????# #?# #????????????????? | | ????????????????? #?# #????????????????? | | ????????????????#######?# #????????????????? | | ????????????????????????# #????????????????? | | ????????????????????????#+##### #????????????????? | | ??????????????????????????????? #????????????????? | | ????????????????????????????????#????????????????? | | ?????????????????????????????????????????????????? | | ?????????????????????????????????????????????????? | | ?????????????????????????????????????????????????? | | ?????????????????????????????????????????????????? | | ?????????????????????????????????????????????????? | | ?????????????????????????????????????????????????? | | ?????????????????????????????????????????????????? | | ?????????????????????????????????????????????????? | | ?????????????????????????????????????????????????? | | ?????????????????????????????????????????????????? | +----------------------------------------------------+ Best States ------------- Heat Dissipation 42 Energy Generation 14 Energy Capacity 275 Matter Stores 450 Matter Capacity 450 Sight Range 16 Robot Scan Range 15 Terrain Scan Density 10 Evasion (%) 55 Recoil Reduction 2 Item Schematics ----------------- None Robot Schematics ------------------ None Fabricated ------------ Nothing Repaired ---------- Nothing Alien Tech Used ----------------- None Achievements -------------- I Survived The Infestation Power Corrupts Use The Force Challenges ------------ None Game ------ Seed ServoTargetingParser Manual? 0 Play Time 00:17:41 Cumulative 4.4 hours Start 2025.10.04 @ 20:45:08 End 2025.10.04 @ 21:03:59 Sessions 1 Manual Loads 0 Difficulty Rogue Special Mode None Game No. 6 Rogue 6 Adventurer 0 Explorer 0 Win Type - Total 0 Types 0/0/0/0/0/0/0/0/0/0 Lore% 2 Gallery% 9 Achievement% 12 Wizard Run 0 Options --------- Layout 1 ASCII 0 Keyboard 0 Movement Numpad Keybinds 0 Fullscreen 1 Font 24/Smallcaps Map View 50x35 Zoom Use 0% Tactical HUD 0 Map Filters NONE Filters NONE Steam 1 RUN: c6a221ed-d3d7-466d-a393-53f04daf1312